bitfinex-derivatives/quotes_BTCF0:USTF0_20250830
["timestamp","ask_amount","ask_price","bid_price","bid_amount"]
[1756568232731,0.05486936,108830.0,108820.0,1.65541202]
[1756568233032,0.05486936,108830.0,108820.0,2.27666144]
[1756568233234,0.08938936,108830.0,108820.0,1.43638144]
[1756568233430,0.08938936,108830.0,108820.0,2.27638144]
[1756568233933,0.09852473,108830.0,108820.0,2.27638144]
[1756568235536,0.08938936,108830.0,108820.0,2.27638144]
[1756568235728,0.06399155,108830.0,108820.0,2.27638144]
[1756568239735,0.06099155,108830.0,108820.0,2.27638144]
[1756568243130,0.03605155,108830.0,108820.0,2.27638144]
[1756568243637,0.03605155,108830.0,108820.0,2.26638144]
[1756568248532,0.02692936,108830.0,108820.0,2.26638144]
[1756568249638,0.02692936,108830.0,108820.0,2.57700615]
[1756568250045,0.02692936,108830.0,108820.0,2.91889125]
[1756568252439,0.05467095,108830.0,108820.0,2.91889125]
[1756568252835,0.07660031,108830.0,108820.0,2.91889125]
[1756568253643,0.02692936,108830.0,108820.0,2.91889125]
[1756568267059,0.02692936,108830.0,108820.0,4.66617125]
[1756568267454,0.05726,108850.0,108830.0,0.0918769]
[1756568267661,0.07230641,108850.0,108840.0,2.49267413]
[1756568267859,0.07230641,108850.0,108840.0,2.51273767]
[1756568268355,0.03622,108860.0,108840.0,2.51273767]
[1756568268552,0.05896,108860.0,108850.0,0.98204942]
[1756568270261,0.06096,108860.0,108850.0,0.98204942]
[1756568275460,0.02474,108860.0,108850.0,0.98204942]
[1756568276065,0.02474,108860.0,108850.0,1.34284942]
[1756568277157,0.02474,108860.0,108850.0,0.7216]
[1756568277361,0.06096,108860.0,108850.0,2.18176942]
[1756568278567,0.02474,108860.0,108850.0,2.18176942]
[1756568279066,0.06096,108860.0,108850.0,2.18176942]
[1756568279471,0.08259409,108860.0,108850.0,2.18176942]
[1756568280470,0.04637409,108860.0,108850.0,2.18176942]
[1756568282166,0.04637409,108860.0,108850.0,1.34284942]
[1756568282371,0.04637409,108860.0,108850.0,2.18164942]
[1756568283471,0.02363409,108860.0,108850.0,2.18164942]
[1756568283666,0.02363409,108860.0,108850.0,1.34284942]
[1756568283867,0.02363409,108860.0,108850.0,2.18160942]
[1756568285775,0.02163409,108860.0,108850.0,2.18160942]
[1756568289360,0.02163409,108860.0,108850.0,2.42160942]
[1756568289565,0.02163409,108860.0,108850.0,2.43160942]
[1756568290172,0.02163409,108860.0,108850.0,2.74223413]
[1756568291166,0.02163409,108860.0,108850.0,2.43160942]
[1756568291469,0.02163409,108860.0,108850.0,1.59284942]
[1756568291672,0.02163409,108860.0,108850.0,2.43140942]
[1756568293071,0.02163409,108860.0,108850.0,1.59284942]
[1756568293279,0.02163409,108860.0,108850.0,2.43136942]
[1756568294275,0.02163409,108860.0,108850.0,2.74199413]
[1756568294480,0.02163409,108860.0,108850.0,2.43136942]
[1756568294971,0.02163409,108860.0,108850.0,1.59284942]
[1756568295477,0.02163409,108860.0,108850.0,2.43132942]
[1756568306481,0.05893409,108860.0,108850.0,2.43116942]
[1756568307179,0.02163409,108860.0,108850.0,2.43116942]
[1756568308785,0.02163409,108860.0,108850.0,2.43112942]
[1756568309786,0.02163409,108860.0,108850.0,1.80988]
[1756568309984,0.05893409,108860.0,108850.0,2.43112942]
[1756568310880,0.02163409,108860.0,108850.0,2.43112942]
[1756568312888,0.02163409,108860.0,108850.0,2.44020432]
[1756568314587,0.02163409,108860.0,108850.0,2.75082903]
[1756568314987,0.02163409,108860.0,108850.0,2.75182903]
[1756568315489,0.02163409,108860.0,108850.0,2.44120432]
[1756568316189,0.02163409,108860.0,108850.0,2.75182903]
[1756568319694,0.02163409,108860.0,108850.0,1.91354903]
[1756568319897,0.02163409,108860.0,108850.0,1.90447413]
[1756568320196,0.02163409,108860.0,108850.0,2.74255413]
[1756568320397,0.02163409,108860.0,108850.0,2.75186201]
[1756568321995,0.02163409,108860.0,108850.0,1.91378201]
[1756568322196,0.02163409,108860.0,108850.0,2.75186201]
[1756568323298,0.02163409,108860.0,108850.0,1.91378201]
[1756568323599,0.02163409,108860.0,108850.0,2.74251413]
[1756568325101,0.02163409,108860.0,108850.0,2.43188942]
[1756568325791,0.05769409,108860.0,108850.0,2.43188942]
[1756568325998,0.05769409,108860.0,108850.0,2.43184942]
[1756568326699,0.05769409,108860.0,108850.0,1.59384942]
[1756568326898,0.02163409,108860.0,108850.0,2.49247413]
[1756568327404,0.04950595,108870.0,108850.0,2.49247413]
[1756568327702,0.08556595,108880.0,108860.0,1.29267413]
[1756568327893,0.08556595,108880.0,108870.0,1.82000942]
[1756568328093,0.08556595,108880.0,108870.0,1.45920942]
[1756568328400,0.03606,108880.0,108870.0,2.18080942]
[1756568329098,0.10404981,108890.0,108870.0,2.18080942]
[1756568329293,0.13742579,108890.0,108880.0,0.98204942]
[1756568330996,0.13742579,108890.0,108880.0,1.05716297]
[1756568331299,0.13126981,108890.0,108880.0,1.36778768]
[1756568332099,0.02148386,108890.0,108880.0,1.36778768]
[1756568333905,0.02148386,108890.0,108880.0,1.37708237]
[1756568334305,0.02148386,108890.0,108880.0,2.20562768]
[1756568334497,0.02148386,108890.0,108880.0,2.20558768]
[1756568339403,0.04286034,108890.0,108880.0,2.20558768]
[1756568342909,0.04286034,108890.0,108880.0,2.20542768]
[1756568344411,0.04286034,108890.0,108880.0,1.36778768]
[1756568344608,0.04286034,108890.0,108880.0,2.20534768]
[1756568346314,0.01846685,108900.0,108880.0,2.45534768]
[1756568346515,0.04233685,108900.0,108890.0,0.98204942]
[1756568346814,0.01846685,108900.0,108890.0,0.98204942]
[1756568347215,0.04233685,108900.0,108890.0,0.98204942]
[1756568347616,0.01846685,108900.0,108890.0,1.29267413]
[1756568348013,0.02246685,108900.0,108890.0,1.29267413]
[1756568348209,0.02246685,108900.0,108890.0,1.38450173]
[1756568348519,0.05927,108920.0,108910.0,0.62124942]
[1756568348817,0.06862724,108920.0,108910.0,2.18032942]
[1756568349007,0.05927,108920.0,108910.0,2.18032942]
[1756568350017,0.05927,108920.0,108910.0,1.34284942]
[1756568350206,0.05927,108920.0,108910.0,2.18028942]
[1756568350615,0.05927,108920.0,108910.0,1.34284942]
[1756568350819,0.05927,108920.0,108910.0,2.18028942]
[1756568351216,0.06826601,108920.0,108910.0,2.18028942]
[1756568351415,0.06826601,108920.0,108910.0,1.34284942]
[1756568351616,0.06826601,108920.0,108910.0,2.18024942]
[1756568353919,0.06826601,108920.0,108910.0,1.45864942]
[1756568354118,0.06826601,108920.0,108910.0,2.18024942]
[1756568354924,0.06826601,108920.0,108910.0,2.18016942]
[1756568356022,0.03286601,108920.0,108910.0,2.18016942]
[1756568356424,0.06826601,108920.0,108910.0,2.18016942]
[1756568356620,0.02387,108920.0,108910.0,2.18016942]
[1756568356824,0.10328969,108930.0,108910.0,2.18016942]
[1756568357025,0.12715969,108930.0,108920.0,0.98204942]
[1756568358231,0.14835123,108930.0,108920.0,0.98204942]
[1756568358929,0.13911108,108930.0,108920.0,1.29267413]
[1756568359130,0.13911108,108930.0,108920.0,0.98204942]
[1756568359331,0.09456749,108930.0,108920.0,0.98204942]
[1756568359522,0.09456749,108930.0,108920.0,1.00249936]
[1756568359724,0.04506154,108930.0,108920.0,1.31312407]
[1756568359920,0.04506154,108930.0,108920.0,1.00249936]
[1756568360129,0.02119154,108930.0,108920.0,1.31312407]
[1756568360329,0.04506154,108930.0,108920.0,1.31312407]
[1756568360519,0.04506154,108930.0,108920.0,1.00249936]
[1756568362130,0.02119154,108930.0,108920.0,1.31312407]
[1756568363125,0.02119154,108930.0,108920.0,1.56312407]
[1756568364230,0.02119154,108930.0,108920.0,1.56712407]
[1756568364626,0.09425366,108950.0,108920.0,1.65892637]
[1756568364944,0.06861771,108950.0,108940.0,1.3630022]
[1756568365935,0.06861771,108950.0,108940.0,2.2000822]
[1756568367135,0.00934771,108950.0,108940.0,1.67362691]
[1756568367336,0.06813257,108960.0,108940.0,2.51066691]
[1756568367639,0.0354,108950.0,108940.0,1.52861749]
[1756568367836,0.10353257,108960.0,108940.0,1.89041749]
[1756568368037,0.13646774,108960.0,108950.0,0.3608]
[1756568368739,0.13646774,108960.0,108950.0,0.98204942]
[1756568369438,0.13646774,108960.0,108950.0,0.67044417]
[1756568370041,0.12328851,108960.0,108950.0,0.7346652]
[1756568372541,0.12328851,108960.0,108950.0,1.5715852]
[1756568374442,0.12328851,108960.0,108950.0,0.7346652]
[1756568374638,0.12328851,108960.0,108950.0,1.5715452]
[1756568376341,0.07378256,108960.0,108950.0,1.5715452]
[1756568376839,0.0948656,108960.0,108950.0,1.5715452]
[1756568377042,0.14425786,108960.0,108950.0,1.5715452]
[1756568377231,0.07592269,108960.0,108950.0,1.88118937]
[1756568377734,0.07592269,108960.0,108950.0,2.13118937]
[1756568378441,0.02653043,108960.0,108950.0,2.22296637]
[1756568378842,0.02653043,108960.0,108950.0,2.23236504]
[1756568379042,0.04939226,108970.0,108950.0,2.23236504]
[1756568379343,0.06777571,108980.0,108960.0,0.98008834]
[1756568379547,0.06777571,108980.0,108970.0,1.50724417]
[1756568379843,0.01838345,108980.0,108970.0,1.50724417]
[1756568380544,0.01838345,108980.0,108970.0,0.67044417]
[1756568380734,0.01838345,108980.0,108970.0,1.50720417]
[1756568381140,0.01862993,108980.0,108970.0,1.50720417]
[1756568382047,0.01862993,108980.0,108970.0,1.50716417]
[1756568383148,0.01862993,108980.0,108970.0,1.51016417]
[1756568383645,0.01862993,108980.0,108970.0,2.06980834]
[1756568384042,0.01862993,108980.0,108970.0,1.76016417]
[1756568384645,0.01862993,108980.0,108970.0,1.76008417]
[1756568388046,0.01862993,108980.0,108970.0,1.76466417]
[1756568388243,0.01862993,108980.0,108970.0,0.92802417]
[1756568388438,0.01862993,108980.0,108970.0,1.76458417]
[1756568391242,0.03952354,108980.0,108970.0,1.76458417]
[1756568392552,0.03952354,108980.0,108970.0,2.07422834]
[1756568396747,0.03952354,108980.0,108970.0,2.07410834]
[1756568398249,0.34930354,108980.0,108970.0,0.36838]
[1756568398549,0.34930354,108980.0,108970.0,1.51442417]
[1756568398550,0.3986958,108980.0,108970.0,1.51442417]
[1756568399151,0.1486958,108980.0,108970.0,1.51442417]
[1756568399655,0.09930354,108980.0,108970.0,1.51442417]
[1756568400154,0.09930354,108980.0,108970.0,1.20478]
[1756568400353,0.09930354,108980.0,108970.0,1.51442417]
[1756568401653,0.09930354,108980.0,108970.0,0.36838]
[1756568401853,0.09930354,108980.0,108970.0,1.51574417]
[1756568402054,0.70833997,108980.0,108970.0,0.00758]
[1756568402253,0.72509295,108980.0,108970.0,0.8453]
[1756568402458,1.08589295,108980.0,108970.0,0.8453]
[1756568402656,1.08589295,108980.0,108970.0,0.00758]
[1756568402956,1.08589295,108980.0,108970.0,0.8455]
[1756568403359,1.08589295,108980.0,108970.0,0.84566]
[1756568403754,0.06023,108960.0,108950.0,0.7643752]
[1756568403957,0.12848885,108960.0,108950.0,1.6024152]
[1756568404257,0.14938246,108960.0,108950.0,1.6024152]
[1756568404453,0.09997713,108960.0,108950.0,0.69015417]
[1756568404655,0.14938741,108960.0,108950.0,1.52811417]
[1756568405152,0.14938741,108960.0,108950.0,1.52911417]
[1756568405753,0.14938741,108960.0,108950.0,1.53311417]
[1756568406454,0.14938741,108960.0,108950.0,0.69515417]
[1756568406760,0.09997713,108960.0,108950.0,1.53319417]
[1756568407563,0.09997713,108960.0,108950.0,1.53311417]
[1756568408563,0.14937991,108960.0,108950.0,1.53311417]
[1756568409062,0.14937991,108960.0,108950.0,0.38551]
[1756568409254,0.16585091,108960.0,108950.0,0.85501]
[1756568409456,0.09997713,108960.0,108950.0,0.33435417]
[1756568409760,0.16585091,108960.0,108950.0,1.17267417]
[1756568410261,0.16585091,108960.0,108950.0,1.53347417]
[1756568410458,0.16585091,108960.0,108950.0,0.33035417]
[1756568410764,0.16585091,108960.0,108950.0,0.02071]
[1756568411065,0.16585091,108960.0,108950.0,1.16867417]
[1756568411656,0.16585091,108960.0,108950.0,1.16767417]
[1756568412054,0.16585091,108960.0,108950.0,0.32935417]
[1756568412252,0.16585091,108960.0,108950.0,1.16771417]
[1756568412452,0.34997713,108960.0,108950.0,1.16771417]
[1756568413464,0.34997713,108960.0,108950.0,0.32935417]
[1756568413668,0.6596213,108960.0,108950.0,1.16009417]
[1756568413961,1.0204213,108960.0,108950.0,0.01213]
[1756568414162,1.0204213,108960.0,108950.0,0.85029]
[1756568416668,1.0204213,108960.0,108950.0,0.85787]
[1756568417568,1.0204213,108960.0,108950.0,0.85775]
[1756568417767,1.0204213,108960.0,108950.0,0.85001]
[1756568419465,1.0204213,108960.0,108950.0,0.01213]
[1756568419664,1.06975152,108960.0,108950.0,0.01213]
[1756568419865,1.06975152,108960.0,108950.0,0.84985]
[1756568420061,1.06975152,108960.0,108950.0,0.01213]
[1756568420366,1.06975152,108960.0,108950.0,0.84981]
[1756568420667,1.06975152,108960.0,108950.0,0.85739]
[1756568421271,1.0204213,108960.0,108950.0,0.85739]
[1756568421471,0.6596213,108960.0,108950.0,0.85739]
[1756568421970,0.4096213,108960.0,108950.0,0.84981]
[1756568422470,0.4589598,108960.0,108950.0,0.85739]
[1756568423065,0.4096213,108960.0,108950.0,0.85739]
[1756568425772,0.7704213,108960.0,108950.0,0.85739]
[1756568426276,0.4096213,108960.0,108950.0,0.85739]
[1756568426574,0.16585091,108960.0,108950.0,0.85739]
[1756568426775,0.47549508,108960.0,108950.0,0.85739]
[1756568426965,0.47549508,108960.0,108920.0,0.02044994]
[1756568426966,0.02366,108930.0,108920.0,0.02044994]
[1756568427172,0.04455361,108930.0,108920.0,1.16717411]
[1756568427373,0.07306282,108930.0,108920.0,1.16717411]
[1756568427568,0.13052643,108930.0,108920.0,1.16717411]
[1756568427977,0.13052643,108930.0,108920.0,1.14668417]
[1756568428171,0.09395643,108930.0,108920.0,1.14668417]
[1756568428870,0.13052643,108930.0,108920.0,1.14668417]
[1756568429065,0.13052643,108930.0,108920.0,1.17150183]
[1756568429271,0.13982983,108930.0,108920.0,1.53230183]
[1756568429467,0.09042701,108930.0,108920.0,1.53230183]
[1756568429682,0.09042701,108930.0,108920.0,1.53030183]
[1756568430078,0.05385701,108930.0,108920.0,1.53030183]
[1756568430271,0.02089361,108930.0,108920.0,1.77930183]
[1756568430477,0.06777872,108940.0,108920.0,2.088946]
[1756568430478,0.07933492,108940.0,108920.0,2.088946]
[1756568430673,0.07933492,108940.0,108930.0,0.98008834]
[1756568430674,0.02089361,108940.0,108930.0,0.98008834]
[1756568430975,0.06764471,108950.0,108930.0,0.98008834]
[1756568430976,0.11219832,108950.0,108930.0,0.98008834]
[1756568431282,0.72997417,108940.0,108920.0,0.33146183]
[1756568431481,0.46973282,108930.0,108920.0,0.02181766]
[1756568431786,0.0988439,108930.0,108920.0,1.16854183]
[1756568432385,0.0978439,108930.0,108920.0,1.16754183]
[1756568432583,0.0978439,108930.0,108920.0,1.16854183]
[1756568433283,0.0978439,108930.0,108920.0,1.16954183]
[1756568435185,0.0638339,108930.0,108920.0,1.16954183]
[1756568435383,0.12970433,108930.0,108920.0,1.16954183]
[1756568435887,0.0638339,108930.0,108920.0,1.16954183]
[1756568436785,0.0638339,108930.0,108920.0,2.089986]
[1756568436786,0.0383139,108930.0,108920.0,2.089986]
[1756568437176,0.0383139,108930.0,108920.0,1.78034183]
[1756568437584,0.06685281,108930.0,108920.0,1.78034183]
[1756568437979,0.08778192,108930.0,108920.0,1.78034183]
[1756568438178,0.02092911,108930.0,108920.0,2.089986]
[1756568438379,0.02092911,108930.0,108920.0,2.088986]
[1756568438580,0.04946802,108940.0,108920.0,2.088986]
[1756568438882,0.04946802,108940.0,108930.0,0.98008834]
[1756568439076,0.07977241,108940.0,108930.0,0.98008834]
[1756568439785,0.07039713,108940.0,108930.0,0.98008834]
[1756568440186,0.04946802,108940.0,108930.0,0.98008834]
[1756568440485,0.04946802,108940.0,108930.0,0.98108834]
[1756568440684,0.07039713,108940.0,108930.0,0.98108834]
[1756568440880,0.04946802,108940.0,108930.0,0.98108834]
[1756568441075,0.07039713,108940.0,108930.0,0.98108834]
[1756568441282,0.04946802,108940.0,108930.0,0.98108834]
[1756568441480,0.07039713,108940.0,108930.0,0.98108834]
[1756568441680,0.04946802,108940.0,108930.0,0.98108834]
[1756568441982,0.07039713,108940.0,108930.0,0.98108834]
[1756568442182,0.04946802,108940.0,108930.0,0.98108834]
[1756568442380,0.07039713,108940.0,108930.0,0.98108834]
[1756568442588,0.13923063,108940.0,108930.0,0.31064417]
[1756568442782,0.46782527,108940.0,108930.0,0.83948]
[1756568443086,0.1581811,108940.0,108930.0,1.14912417]
[1756568443485,0.5189811,108940.0,108930.0,1.14912417]
[1756568443687,0.46951308,108940.0,108930.0,1.14912417]
[1756568444086,0.46951308,108940.0,108930.0,0.31064417]
[1756568444287,0.10871308,108940.0,108930.0,1.14912417]
[1756568444489,0.15819722,108940.0,108930.0,0.31064417]
[1756568444787,0.15819722,108940.0,108930.0,1.14900417]
[1756568449095,0.15819722,108940.0,108930.0,1.45864834]
[1756568449096,0.12318722,108940.0,108930.0,1.45864834]
[1756568449297,0.09866722,108940.0,108930.0,1.81944834]
[1756568450403,0.07971675,108940.0,108930.0,1.81944834]
[1756568450898,0.13924675,108940.0,108930.0,0.3618]
[1756568451095,0.13924675,108940.0,108930.0,0.001]
[1756568451298,0.75004675,108940.0,108930.0,0.84032]
[1756568451494,0.75004675,108940.0,108930.0,1.14996417]
[1756568451699,1.05969092,108940.0,108930.0,0.001]
[1756568451894,1.07607721,108940.0,108930.0,0.73468]
[1756568452497,0.76643304,108940.0,108930.0,0.73468]
[1756568452702,1.07607721,108940.0,108930.0,0.73468]
[1756568455309,0.76643304,108940.0,108930.0,0.73468]
[1756568455513,1.07607721,108940.0,108930.0,0.73468]
[1756568459208,0.82607721,108940.0,108930.0,0.73468]
[1756568460210,0.76020678,108940.0,108930.0,0.73468]
[1756568460812,1.01020678,108940.0,108930.0,0.001]
[1756568460998,1.07607721,108940.0,108930.0,0.001]
[1756568468021,1.01020678,108940.0,108930.0,0.001]
[1756568468324,1.07617926,108940.0,108930.0,0.001]
[1756568474022,1.01020678,108940.0,108930.0,0.001]
[1756568478925,1.09191975,108940.0,108930.0,0.001]
[1756568479122,0.15580523,108940.0,108930.0,0.8905763]
[1756568479322,0.08976261,108940.0,108930.0,0.8905763]
[1756568479523,0.08976261,108940.0,108930.0,0.58093213]
[1756568479722,0.45056261,108940.0,108930.0,0.58093213]
[1756568480124,0.08976261,108940.0,108930.0,0.58093213]
[1756568480324,0.45056261,108940.0,108930.0,0.58093213]
[1756568480525,0.45056261,108940.0,108930.0,0.27128796]
[1756568480720,0.45056261,108940.0,108930.0,0.58093213]
[1756568481121,0.51660523,108940.0,108930.0,0.58093213]
[1756568481435,0.51660523,108940.0,108930.0,1.42037213]
[1756568481836,0.51660523,108940.0,108930.0,0.58093213]
[1756568482132,0.51660523,108940.0,108930.0,1.42041213]
[1756568482431,0.50009942,108940.0,108930.0,1.42041213]
[1756568484030,0.13929942,108940.0,108930.0,1.42041213]
[1756568484632,0.50009942,108940.0,108930.0,1.42041213]
[1756568485535,0.13929942,108940.0,108930.0,1.42041213]
[1756568486334,0.07976942,108940.0,108930.0,2.0908563]
[1756568486726,0.02092911,108940.0,108930.0,2.0908563]
[1756568486926,0.03021595,108940.0,108930.0,2.0908563]
[1756568487128,0.02092911,108940.0,108930.0,2.0908563]
[1756568490037,0.02092911,108940.0,108930.0,1.2503763]
[1756568490338,0.02092911,108940.0,108930.0,2.0940163]
[1756568491033,0.05634911,108940.0,108930.0,1.22600796]
[1756568491238,0.05634911,108940.0,108930.0,1.8452963]
[1756568491738,0.05634911,108940.0,108930.0,1.8443363]
[1756568492130,0.02092911,108940.0,108930.0,1.0043763]
[1756568492325,0.02092911,108940.0,108930.0,2.186049]
[1756568492534,0.02092911,108940.0,108930.0,2.183049]
[1756568493745,0.02092911,108940.0,108930.0,2.185049]
[1756568494845,0.02092911,108940.0,108930.0,2.186049]
[1756568495646,0.02092911,108940.0,108930.0,1.2543763]
[1756568495948,0.02092911,108940.0,108930.0,2.0942563]
[1756568499247,0.02092911,108940.0,108930.0,1.2543763]
[1756568499448,0.02092911,108940.0,108930.0,2.0938163]
[1756568501150,0.02092911,108940.0,108930.0,1.2543763]
[1756568501351,0.02092911,108940.0,108930.0,2.0944163]
[1756568502045,0.02092911,108940.0,108930.0,2.0946563]
[1756568502246,0.02092911,108940.0,108930.0,2.0945363]
[1756568503848,0.02092911,108940.0,108930.0,2.0944563]
[1756568504357,0.02092911,108940.0,108930.0,1.2543763]
[1756568504653,0.02092911,108940.0,108930.0,2.0943363]
[1756568505756,0.02092911,108940.0,108930.0,2.4551363]
[1756568506856,0.02092911,108940.0,108930.0,1.6151763]
[1756568507055,0.02092911,108940.0,108930.0,2.4548963]
[1756568507653,0.02092911,108940.0,108930.0,2.4548563]
[1756568513267,0.03343229,108950.0,108930.0,2.4352563]
[1756568513471,0.05710229,108950.0,108940.0,0.67561417]
[1756568515668,0.05710229,108950.0,108940.0,0.36597]
[1756568515862,0.05710229,108950.0,108940.0,0.67761417]
[1756568517277,0.1066391,108950.0,108940.0,0.67761417]
[1756568524978,0.04953681,108950.0,108940.0,0.67761417]
[1756568525378,0.07024243,108950.0,108940.0,1.29679121]
[1756568533292,0.10676243,108950.0,108940.0,1.29679121]
[1756568534286,0.10676243,108950.0,108940.0,2.13419121]
[1756568534687,0.0990689,108950.0,108940.0,0.00717]
[1756568534886,0.0990689,108950.0,108940.0,1.82255414]
[1756568535086,0.0990689,108950.0,108940.0,1.46374414]
[1756568535283,0.14860571,108950.0,108940.0,0.00717]
[1756568535595,0.3490689,108950.0,108940.0,1.46390414]
[1756568536390,0.39862462,108950.0,108940.0,1.46390414]
[1756568536591,0.39862462,108950.0,108940.0,1.82470414]
[1756568537384,0.39862462,108950.0,108940.0,1.51516363]
[1756568537790,0.37981134,108950.0,108940.0,1.51516363]
[1756568538400,0.39812369,108950.0,108940.0,1.51516363]
[1756568541998,0.14812369,108950.0,108940.0,1.51516363]
[1756568543989,0.11160369,108950.0,108940.0,1.51516363]
[1756568545203,0.11154165,108950.0,108940.0,1.51516363]
[1756568545596,0.14806165,108950.0,108940.0,0.36797]
[1756568545800,0.14806165,108950.0,108940.0,0.67764363]
[1756568546104,0.14806165,108950.0,108940.0,1.51584363]
[1756568547403,0.14806165,108950.0,108940.0,1.51384363]
[1756568547603,0.14806165,108950.0,108940.0,1.51848363]
[1756568548304,0.14806165,108950.0,108940.0,0.67564363]
[1756568548503,0.14806165,108950.0,108940.0,1.51832363]
[1756568548700,0.08851165,108950.0,108940.0,1.51832363]
[1756568551309,0.11154165,108950.0,108940.0,0.67564363]
[1756568551496,0.11154165,108950.0,108940.0,1.51820363]
[1756568552304,0.11154165,108950.0,108940.0,1.20853]
[1756568552608,0.11154165,108950.0,108940.0,1.51820363]
[1756568553911,0.03895593,108950.0,108940.0,1.51820363]
[1756568555609,0.06786807,108950.0,108940.0,1.51820363]
[1756568556005,0.08851165,108950.0,108940.0,1.51820363]
[1756568557399,0.08851165,108950.0,108940.0,1.82784726]
[1756568559911,0.03895593,108950.0,108940.0,1.82784726]
[1756568561005,0.02064358,108950.0,108940.0,1.82784726]
[1756568561205,0.04392358,108950.0,108940.0,1.82784726]
[1756568564017,0.02064358,108950.0,108940.0,2.13750589]
[1756568566418,0.07283572,108960.0,108950.0,0.00517]
[1756568566615,0.02063265,108960.0,108950.0,0.98528726]
[1756568566913,0.02983096,108960.0,108950.0,0.98528726]
[1756568567220,0.02063265,108960.0,108950.0,0.98528726]
[1756568567730,0.02063265,108960.0,108950.0,0.98728726]
[1756568569318,0.02063265,108960.0,108950.0,1.05968764]
[1756568569928,0.01864265,108960.0,108950.0,1.36934627]
[1756568570132,0.01864265,108960.0,108950.0,1.71112207]
[1756568575938,0.01864265,108960.0,108950.0,2.46110627]
[1756568577430,0.01828369,108970.0,108950.0,2.46110627]
[1756568577431,0.01828369,108970.0,108950.0,2.45911627]
[1756568577635,0.04156369,108970.0,108960.0,1.28977589]
[1756568580733,0.04156369,108970.0,108960.0,2.13109589]
[1756568581740,0.06212714,108970.0,108960.0,2.13109589]
[1756568582841,0.06212714,108970.0,108960.0,1.29177589]
[1756568583034,0.09911714,108970.0,108960.0,1.29177589]
[1756568583241,0.09911714,108970.0,108960.0,1.82303726]
[1756568583441,0.09911714,108970.0,108960.0,1.82299726]
[1756568585637,0.34911714,108970.0,108960.0,1.82299726]
[1756568586743,0.34911714,108970.0,108960.0,0.98211726]
[1756568587044,0.34911714,108970.0,108960.0,1.82279726]
[1756568588338,0.34911714,108970.0,108960.0,0.98211726]
[1756568588543,0.75947286,108970.0,108960.0,1.46171726]
[1756568589042,1.06913149,108970.0,108960.0,1.46171726]
[1756568589243,1.06913149,108970.0,108960.0,0.002]
[1756568589544,1.06913149,108970.0,108960.0,1.15201863]
[1756568589735,1.06913149,108970.0,108960.0,1.15197863]
[1756568590741,1.01957577,108970.0,108960.0,1.15197863]
[1756568591344,0.70991714,108970.0,108960.0,1.15196521]
[1756568591844,0.70991714,108970.0,108960.0,0.31164521]
[1756568592046,0.70991714,108970.0,108960.0,0.84216]
[1756568592745,0.78417593,108970.0,108960.0,0.84216]
[1756568593046,0.83362344,108970.0,108960.0,0.84216]
[1756568593346,0.78417593,108970.0,108960.0,0.84216]
[1756568594041,0.53417593,108970.0,108960.0,1.15180521]
[1756568594239,0.50936758,108970.0,108960.0,1.15180521]
[1756568594543,0.45991714,108970.0,108960.0,1.15180521]
[1756568595940,0.50937118,108970.0,108960.0,1.15180521]
[1756568596245,0.45991714,108970.0,108960.0,1.15180521]
[1756568596846,0.45991714,108970.0,108960.0,0.31164521]
[1756568597035,0.45991714,108970.0,108960.0,1.15216521]
[1756568598149,0.50936431,108970.0,108960.0,1.15216521]
[1756568598945,1.01956235,108970.0,108960.0,0.002]
[1756568599146,1.01956235,108970.0,108960.0,0.61856]
[1756568599950,1.069003,108970.0,108960.0,0.61856]
[1756568601846,1.069003,108970.0,108960.0,0.002]
[1756568602052,1.09117121,108970.0,108960.0,0.55856]
[1756568602350,1.09117121,108970.0,108960.0,0.00658]
[1756568603755,1.15721383,108970.0,108960.0,0.00658]
[1756568604556,0.03699,108960.0,108940.0,0.00658]
[1756568604751,0.7426963,108950.0,108940.0,0.85878]
[1756568604953,0.81893741,108950.0,108940.0,0.85878]
[1756568605854,0.81893741,108950.0,108940.0,0.86078]
[1756568606354,0.81893741,108950.0,108940.0,0.85878]
[1756568606556,0.81893741,108950.0,108940.0,0.86478]
[1756568606853,0.5092922,108950.0,108940.0,0.86478]
[1756568607155,0.81893741,108950.0,108940.0,0.86478]
[1756568607355,0.81893741,108950.0,108940.0,0.86454]
[1756568609459,0.5092922,108950.0,108940.0,0.86454]
[1756568609657,0.81893741,108950.0,108940.0,0.86454]
[1756568609857,0.5092922,108950.0,108940.0,0.86454]
[1756568610857,0.81893741,108950.0,108940.0,0.86454]
[1756568611458,0.5092922,108950.0,108940.0,0.86454]
[1756568612660,0.5092922,108950.0,108940.0,1.17418521]
[1756568614863,0.5092922,108950.0,108940.0,0.86454]
[1756568615064,0.5092922,108950.0,108940.0,1.17418521]
[1756568615564,0.5092922,108950.0,108940.0,0.86454]
[1756568615759,0.5092922,108950.0,108940.0,1.17418521]
[1756568617064,0.45986111,108950.0,108940.0,1.17418521]
[1756568617266,0.76959731,108950.0,108940.0,1.4840124]
[1756568617767,0.45986111,108950.0,108940.0,1.4840124]
[1756568618063,0.76959731,108950.0,108940.0,1.4840124]
[1756568619969,0.76959731,108950.0,108940.0,0.6425724]
[1756568620165,0.08872562,108950.0,108940.0,2.0435086]
[1756568620362,0.03925111,108950.0,108940.0,2.4043086]
[1756568621365,0.03925111,108950.0,108940.0,1.78471276]
[1756568623971,0.03267111,108950.0,108940.0,2.09432552]
[1756568624172,0.03267111,108950.0,108940.0,1.78471276]
[1756568627274,0.03267111,108950.0,108940.0,2.18610942]
[1756568628666,1.13339163,108980.0,108940.0,2.16900412]
[1756568628667,0.04947451,108980.0,108940.0,2.16900412]
[1756568628874,0.10923451,108990.0,108970.0,0.67041276]
[1756568629067,0.10923451,108990.0,108980.0,1.51117276]
[1756568629275,0.05976,108990.0,108980.0,1.51117276]
[1756568629581,0.06893574,108990.0,108980.0,1.51117276]
[1756568631072,0.07093574,108990.0,108980.0,1.51117276]
[1756568632777,0.03595574,108990.0,108980.0,1.51117276]
[1756568633374,0.07093574,108990.0,108980.0,1.51117276]
[1756568635476,0.07093574,108990.0,108980.0,0.67041276]
[1756568635677,0.07093574,108990.0,108980.0,1.14993276]
[1756568637581,0.07093574,108990.0,108980.0,0.30961276]
[1756568637780,0.07093574,108990.0,108980.0,1.14977276]
[1756568637979,0.07093574,108990.0,108980.0,0.84016]
[1756568638179,0.07093574,108990.0,108980.0,1.14977276]
[1756568640280,0.90518126,108990.0,108960.0,2.10624]
[1756568640582,0.73017276,108970.0,108960.0,1.74544]
[1756568640779,0.75093404,108970.0,108960.0,2.58588]
[1756568640980,0.80040855,108970.0,108960.0,2.58588]
[1756568641682,1.05040855,108970.0,108960.0,1.74644]
[1756568641886,1.05040855,108970.0,108960.0,2.5912]
[1756568643480,1.05040855,108970.0,108960.0,2.59152]
[1756568644788,1.12405814,108970.0,108960.0,2.59152]
[1756568647686,0.81444538,108970.0,108960.0,2.59152]
[1756568647888,1.12405814,108970.0,108960.0,2.59152]